[Event "Asian Zonal-ch 3.5 Women 2019"]
[Site "Zi Bo"]
[Date "2019.09.10"]
[Round "10.8"]
[White "Yuan, Ye"]
[Black "Bai, Xue"]
[Result "1/2-1/2"]
[ECO "A30"]
[WhiteElo "2092"]
[BlackElo "2093"]
[Annotator "NA RC"]
[PlyCount "55"]
[EventDate "2019.09.05"]
[EventType "swiss"]
[EventCountry "CHN"]
[SourceTitle "playchess.com"]
[Source "ChessBase"]
[SourceQuality "1"]
[TimeControl "5400+30"]

{[%evp 10,52,36,32767,42,32767,32767,77,32767,71,110,80,103,71,77,30,32767,36,32767,32767,32767,32767,32767,32767,32767,32767,32767,32767,32767,5,9,5,12,32767,32767,32767,4,32767,0,0,0,-22,-31,-30,0]} 1. Nf3 {[%emt 0:00:43]} Nf6 {[%emt 0:00:00]} 2. g3 {[%emt 0:04:35]} e6 {[%emt 0:00:33]} 3. Bg2 {[%emt 0:00:22]} d5 {[%emt 0:00:09]} 4. O-O {[%emt 0:00:52]} c5 {[%emt 0:00:13]} 5. c4 {[%emt 0:10:07]} Nc6 {[%emt 0:01:54]} 6. d3 {[%emt 0:00:42] A30: Symmetrical English: Double Fianchetto and Hedgehog} (6. d4 Be7 7. cxd5 Nxd5 8. dxc5 Bxc5 9. a3 O-O 10. b4 Be7 11. Bb2 Bf6 12. Bxf6 Qxf6 13. Ra2 Bd7 14. Qc1 Rfc8 15. Qb2 a5 16. bxa5 Qxb2 17. Rxb2 Nxa5 18. Ne5 Be8 {0-1 (38) Blomqvist,E (2567)-Safarli,E (2691) London 2016}) 6... dxc4 {[%emt 0:04:08]} 7. dxc4 {[%emt 0:00:13]} Qxd1 {[%emt 0:02:07]} 8. Rxd1 {[%emt 0:00:07]} Bd7 {[%emt 0:00:37]} 9. Nc3 {[%emt 0:02:37]} O-O-O $146 {[%emt 0:02:55]} ({Predecessor:} 9... a6 10. Na4 O-O-O 11. Bf4 e5 12. Bxe5 Nxe5 13. Nxe5 Bxa4 14. Rxd8+ Kxd8 15. Nxf7+ {1-0 (52) Speer,D (1820)-Weng,P (1778) Muenster 2005}) 10. Bf4 {[%emt 0:13:30]} Nh5 {[%emt 0:03:34]} 11. Bg5 {[%emt 0:00:35]} Nf6 {[%emt 0:03:13]} 12. Rd2 {[%emt 0:02:33]} Be7 {[%emt 0:02:23]} 13. Rad1 {[%emt 0:00:55]} h6 {[%emt 0:00:34]} 14. Bf4 {[%emt 0:00:20]} g5 {[%emt 0:02:34]} 15. Bd6 {[%emt 0:01:21]} Bxd6 {[%emt 0:02:04]} 16. Rxd6 {[%emt 0:00:06]} g4 {[%emt 0:06:38]} 17. Nh4 {[%emt 0:00:32]} Ne5 {[%emt 0:00:27]} 18. b3 {[%emt 0:00:12]} Bc6 {[%emt 0:00:25]} 19. Rxd8+ {[%emt 0:03:07]} Rxd8 {[%emt 0:00:07]} 20. Rxd8+ {[%emt 0:00:10]} Kxd8 {[%emt 0:00:04]} 21. Kf1 {[%emt 0:00:22]} Kc7 {[%emt 0:00:20]} 22. Ke1 {[%emt 0:00:13]} a6 {[%emt 0:00:44]} 23. Kd2 {[%emt 0:01:14]} Bxg2 {[%emt 0:00:29]} 24. Nxg2 {[%emt 0:00:02]} Kc6 {[%emt 0:01:09]} 25. a4 {[%emt 0:01:26]} Kc7 {[%emt 0:00:22]} 26. Kc2 $11 {[%emt 0:00:04]} Kc6 {[%emt 0:00:20]} 27. Kd2 {[%emt 0:00:06]} Kc7 {[%emt 0:00:48]} 28. Kc2 {[%emt 0:00:02]} 1/2-1/2

[Event "Asian Zonal-ch 3.5 Women 2019"]
[Site "Zi Bo"]
[Date "2019.09.10"]
[Round "10.9"]
[White "Ha, Yihan"]
[Black "Cai Youyang"]
[Result "0-1"]
[ECO "D36"]
[WhiteElo "1580"]
[BlackElo "1910"]
[Annotator "NA RC"]
[PlyCount "91"]
[EventDate "2019.09.05"]
[EventType "swiss"]
[EventCountry "CHN"]
[SourceTitle "playchess.com"]
[Source "ChessBase"]
[SourceQuality "1"]
[TimeControl "5400+30"]

1. d4 {[%emt 0:00:00]} d5 {[%emt 0:00:06]} 2. c4 {[%emt 0:00:00]} e6 {[%emt 0:00:04]} 3. Nc3 {[%emt 0:00:00]} Nf6 {[%emt 0:00:10]} 4. cxd5 {[%emt 0:00:00]} exd5 {[%emt 0:00:04]} 5. Bg5 {[%emt 0:00:00]} c6 {[%emt 0:00:08]} 6. e3 {[%emt 0:00:01]} Be7 {[%emt 0:00:08]} 7. Bd3 {[%emt 0:00:07]} h6 {[%emt 0:00:17]} 8. Bh4 {[%emt 0:00:38]} O-O {[%emt 0:00:09]} 9. Qc2 {[%emt 0:00:11]} Nbd7 {[%emt 0:00:05]} 10. Nge2 {[%emt 0:00:39]} Re8 {[%emt 0:00:10]} 11. O-O {[%emt 0:01:13]} Nf8 {[%emt 0:00:54]} 12. Rab1 {[%emt 0:00:46]} Ne6 {[%emt 0:01:49] D36: Queen's Gambit Declined: Exchange Variation: Main line (5 Bg5 c6 6 Qc2)} (12... a5 13. Rbe1 Ne4 14. Bxe7 Qxe7 15. Bxe4 dxe4 16. Ng3 b6 17. Rc1 Ba6 18. Rfe1 Bd3 19. Qd1 Qe6 20. f3 {½-½ (36) Vayser,V (2457)-Dimov,I (2497) ICCF email 2012}) 13. b4 {[%emt 0:00:38]} b6 {[%emt 0:01:38]} 14. b5 $146 {[%emt 0:02:56]} ({Predecessor:} 14. Bxf6 Bxf6 15. b5 Bd7 16. bxc6 Bxc6 17. Bb5 Qd7 18. Qf5 Red8 19. Bd3 Nf8 20. Rfc1 Qxf5 21. Bxf5 {1-0 (59) Blondel,F (1975)-Kuerten,D (2139) ICCF email 2013}) 14... c5 {[%emt 0:00:44]} 15. dxc5 {[%emt 0:00:58]} bxc5 {[%emt 0:00:43]} 16. Bxf6 {[%emt 0:01:23]} Bxf6 {[%emt 0:00:46] [#]} 17. Nxd5 $1 {[%emt 0:02:42]} Bb7 {[%emt 0:13:00]} 18. Nxf6+ {[%emt 0:01:23]} Qxf6 {[%emt 0:00:05]} 19. f3 {[%emt 0:18:55]} Rad8 {[%emt 0:03:15]} 20. Rbe1 {[%emt 0:10:53]} Ng5 {[%emt 0:05:17]} 21. Nf4 {[%emt 0:01:39]} Qb6 {[%emt 0:01:32] [#]} (21... Ne6 $16) 22. Bc4 $1 {[%emt 0:02:48]} Ne6 {[%emt 0:03:07]} 23. Nxe6 {[%emt 0:01:38]} fxe6 {[%emt 0:00:06]} 24. Qg6 {[%emt 0:00:19]} Bd5 {[%emt 0:01:29]} 25. Bd3 {[%emt 0:00:55]} e5 {[%emt 0:00:10]} 26. a4 $2 {[%emt 0:03:13]} (26. Qh7+ $18 Kf8 27. Be4) 26... e4 {[%emt 0:01:33]} 27. Qxb6 {[%emt 0:02:49]} axb6 {[%emt 0:01:06]} 28. fxe4 {[%emt 0:11:09]} Bb3 {[%emt 0:00:24]} 29. Be2 {[%emt 0:03:56]} Rxe4 {[%emt 0:00:47]} 30. Bd1 {[%emt 0:01:40]} (30. a5 $11) 30... Bxa4 {[%emt 0:01:01]} 31. Bxa4 {[%emt 0:01:51]} Rxa4 {[%emt 0:00:02]} 32. Rb1 {[%emt 0:06:05]} Rd3 {[%emt 0:00:10]} 33. Kf2 {[%emt 0:02:59]} Ra2+ {[%emt 0:00:50]} 34. Kf3 {[%emt 0:00:41]} Rdd2 {[%emt 0:00:04]} 35. Rg1 {[%emt 0:00:29]} Rab2 {[%emt 0:02:30]} 36. Ke4 {[%emt 0:02:49]} Rxg2 {[%emt 0:03:22]} 37. Kd5 {[%emt 0:00:45]} Rxb5 {[%emt 0:03:03]} 38. Rxb5 {[%emt 0:00:20]} Rxg1 {[%emt 0:00:01]} 39. Rxb6 {[%emt 0:00:13]} Rg5+ {[%emt 0:00:24]} 40. Kc4 {[%emt 0:00:28]} (40. Kd6 $1 $11) 40... Re5 {[%emt 0:00:12]} 41. Rb3 {[%emt 0:04:54]} Kf7 $19 {[%emt 0:00:20]} 42. Rd3 {[%emt 0:05:44]} Kf6 {[%emt 0:02:37]} 43. Rd5 {[%emt 0:01:08]} Rxe3 {[%emt 0:00:09]} 44. Kxc5 {[%emt 0:00:18]} Re2 {[%emt 0:00:37]} 45. h4 {[%emt 0:01:29]} Re5 {[%emt 0:00:51]} 46. Kd4 {[%emt 0:00:35]} 0-1

[Event "Asian Zonal-ch 3.5 Women 2019"]
[Site "Zi Bo"]
[Date "2019.09.10"]
[Round "10.10"]
[White "Zhao, Shengxin"]
[Black "Wang, Yuehan"]
[Result "1/2-1/2"]
[ECO "E01"]
[WhiteElo "2162"]
[BlackElo "1600"]
[Annotator "NA"]
[PlyCount "96"]
[EventDate "2019.09.05"]
[EventType "swiss"]
[EventCountry "CHN"]
[SourceTitle "playchess.com"]
[Source "ChessBase"]
[SourceQuality "1"]
[TimeControl "5400+30"]

1. d4 {[%emt 0:00:00]} Nf6 {[%emt 0:00:00]} 2. c4 {[%emt 0:00:28]} ({Predecessor:} 2. Nf3 d5 3. c4 e6 4. g3 c6 5. Nbd2 Bd6 6. Bg2 Nbd7 7. Qc2 b6 8. cxd5 cxd5 9. Qc6 Qc7 10. Qxa8 O-O {0-1 (59) Goepfert,J (2023)-Urban,R (2052) Hamburg 2016}) 2... e6 {[%emt 0:00:00]} 3. g3 {[%emt 0:00:04]} d5 {[%emt 0:00:00]} 4. Bg2 {[%emt 0:00:04]} c6 {[%emt 0:00:00]} 5. Nf3 {[%emt 0:00:26]} Nbd7 {[%emt 0:01:11]} 6. Qc2 {[%emt 0:04:38]} Bd6 {[%emt 0:00:33]} 7. O-O {[%emt 0:00:55]} O-O {[%emt 0:00:21]} 8. Nbd2 {[%emt 0:01:00]} b6 {[%emt 0:01:27]} 9. cxd5 $146 {[%emt 0:05:17] E01: Catalan: Early deviations} (9. e4 dxe4 10. Nxe4 Nxe4 11. Qxe4 Bb7 12. Bg5 Qc7 13. Rad1 Rae8 14. Rfe1 c5 15. Qe2 e5 16. dxe5 Nxe5 17. Nxe5 Rxe5 18. Qd2 Bxg2 19. Kxg2 Qc6+ {½-½ (60) Harika,D (2513)-Gunina,V (2516) Rome 2015}) 9... cxd5 {[%emt 0:00:20]} 10. Qc6 {[%emt 0:00:06]} Qc7 {[%emt 0:03:08]} 11. Qxa8 {[%emt 0:03:03]} Ba6 {[%emt 0:16:55]} 12. Qxf8+ $1 {[%emt 0:00:23]} Kxf8 {[%emt 0:01:47]} 13. Re1 {[%emt 0:00:38]} Qc2 {[%emt 0:00:34]} 14. Bf1 {[%emt 0:20:08]} Ne4 {[%emt 0:02:46]} 15. e3 {[%emt 0:09:00]} Bxf1 {[%emt 0:01:19]} 16. Rxf1 {[%emt 0:01:08]} Ndf6 {[%emt 0:04:17]} 17. a3 {[%emt 0:06:01]} a5 {[%emt 0:01:18]} (17... h5 $19 18. h4 {[#]} Bxg3 $1 {[%mdl 512]} 19. fxg3 Nxg3) 18. b4 {[%emt 0:03:34]} a4 {[%emt 0:08:07]} 19. Rb1 {[%emt 0:10:34]} Qd3 {[%emt 0:12:49]} 20. Ne1 {[%emt 0:05:48]} Qc3 {[%emt 0:03:48]} 21. Ndf3 {[%emt 0:13:28]} (21. Nef3 $17) 21... g5 {[%emt 0:06:25]} 22. Ne5 {[%emt 0:03:32]} Bxe5 {[%emt 0:08:14]} 23. dxe5 {[%emt 0:00:52]} Qxe5 {[%emt 0:00:44]} 24. b5 {[%emt 0:04:46]} Nc3 {[%emt 0:01:59]} 25. Rb2 {[%emt 0:02:37]} g4 {[%emt 0:05:27]} 26. f4 {[%emt 0:00:59]} Qe4 $19 {[%emt 0:00:51]} 27. Rb4 {[%emt 0:00:30]} d4 {[%emt 0:01:55]} 28. Rf2 {[%emt 0:02:00]} dxe3 {[%emt 0:03:53]} 29. Rc2 {[%emt 0:00:27]} Qd5 {[%emt 0:05:12]} 30. Rxc3 {[%emt 0:00:01]} Qd1 {[%emt 0:00:05]} 31. Kf1 {[%emt 0:01:00]} Nd5 {[%emt 0:01:48]} 32. Rc8+ {[%emt 0:00:13]} Kg7 {[%emt 0:00:05]} 33. Re4 {[%emt 0:02:03]} Qb3 {[%emt 0:00:22]} 34. Rd4 {[%emt 0:00:35]} Qxb5+ {[%emt 0:00:27]} 35. Nd3 {[%emt 0:00:19]} Qb1 {[%emt 0:00:51]} 36. Ke2 {[%emt 0:00:33]} Ne7 {[%emt 0:02:14]} 37. Rb4 {[%emt 0:00:39]} Qa2+ {[%emt 0:01:10]} 38. Bb2+ {[%emt 0:00:01]} Kh6 {[%emt 0:00:54]} 39. Rc2 {[%emt 0:00:55]} Qd5 {[%emt 0:00:38]} 40. Kxe3 {[%emt 0:00:39]} Qf3+ {[%emt 0:00:04]} 41. Kd2 {[%emt 0:00:03]} Nd5 {[%emt 0:01:48]} 42. Bd4 {[%emt 0:00:50]} Qg2+ {[%emt 0:01:02]} 43. Kd1 {[%emt 0:00:36]} Qf3+ {[%emt 0:00:53]} 44. Kd2 {[%emt 0:00:06]} Qg2+ {[%emt 0:00:04]} 45. Kd1 {[%emt 0:00:27]} Qf3+ {[%emt 0:00:02]} 46. Kd2 {[%emt 0:00:19]} Qg2+ {[%emt 0:00:04]} 47. Kd1 {[%emt 0:00:43]} Qf3+ {[%emt 0:00:01]} 48. Kd2 {[%emt 0:00:32]} Qg2+ {[%emt 0:00:04]} 1/2-1/2

[Event "Asian Zonal-ch 3.5 Women 2019"]
[Site "Zi Bo"]
[Date "2019.09.10"]
[Round "10.11"]
[White "Zhou, Zirun"]
[Black "Xue, Yue"]
[Result "1-0"]
[ECO "D79"]
[WhiteElo "2155"]
[BlackElo "1678"]
[Annotator "RC"]
[PlyCount "63"]
[EventDate "2019.09.05"]
[EventType "swiss"]
[EventCountry "CHN"]
[SourceTitle "playchess.com"]
[Source "ChessBase"]
[SourceQuality "1"]
[TimeControl "5400+30"]

1. d4 {[%emt 0:00:00]} Nf6 {[%emt 0:00:00]} 2. c4 {[%emt 0:00:00]} g6 {[%emt 0:00:00]} 3. Nf3 {[%emt 0:00:00]} Bg7 {[%emt 0:00:00]} 4. Nc3 {[%emt 0:01:25]} d5 {[%emt 0:00:27]} 5. g3 {[%emt 0:03:21]} O-O {[%emt 0:02:56]} 6. Bg2 {[%emt 0:00:16]} c6 {[%emt 0:01:02]} 7. cxd5 {[%emt 0:00:15]} cxd5 {[%emt 0:00:58]} 8. O-O {[%emt 0:00:09]} Nc6 {[%emt 0:00:03]} 9. Ne5 {[%emt 0:00:11]} Bf5 {[%emt 0:05:07]} 10. e3 {[%emt 0:03:26]} Ne4 {[%emt 0:09:48]} 11. Nxc6 {[%emt 0:01:50]} bxc6 {[%emt 0:00:18]} 12. Nxe4 {[%emt 0:00:20]} Bxe4 {[%emt 0:00:02]} 13. Bxe4 {[%emt 0:00:10]} dxe4 {[%emt 0:00:02]} 14. Qc2 {[%emt 0:00:47]} Qd5 {[%emt 0:00:17]} 15. Bd2 {[%emt 0:00:57]} Rfd8 {[%emt 0:01:11]} 16. Bb4 {[%emt 0:02:10]} e5 {[%emt 0:05:59]} 17. dxe5 {[%emt 0:00:13]} Qxe5 {[%emt 0:00:52]} 18. Bc3 {[%emt 0:02:08]} Qe6 {[%emt 0:00:31]} 19. Bxg7 {[%emt 0:00:50]} Kxg7 {[%emt 0:00:02]} 20. b3 {[%emt 0:00:23]} Rd5 {[%emt 0:06:12]} 21. Rac1 {[%emt 0:00:42]} Rh5 {[%emt 0:06:30]} 22. Qc3+ {[%emt 0:05:57]} Kh6 {[%emt 0:02:19]} 23. f4 {[%emt 0:03:22]} exf3 {[%emt 0:00:46]} 24. Rxf3 {[%emt 0:00:07]} Rc8 {[%emt 0:00:41]} 25. Rf6 {[%emt 0:03:46]} Qe7 {[%emt 0:03:56]} 26. Rcf1 {[%emt 0:11:02]} Rc5 {[%emt 0:05:45]} 27. Rxf7 {[%emt 0:01:53]} Qxf7 {[%emt 0:00:06]} 28. Qxc5 {[%emt 0:00:06]} Qd7 {[%emt 0:00:40]} 29. Qd4 {[%emt 0:04:34]} Qe7 {[%emt 0:07:58]} 30. Rf4 {[%emt 0:00:14]} g5 {[%emt 0:00:48]} 31. Rf6+ {[%emt 0:00:11]} Kh5 {[%emt 0:00:02]} 32. g4+ {[%emt 0:00:05]} 1-0

[Event "Asian Zonal-ch 3.5 Women 2019"]
[Site "Zi Bo"]
[Date "2019.09.10"]
[Round "10.12"]
[White "Zhao, Caidi"]
[Black "Zhang, Yuxuan"]
[Result "0-1"]
[ECO "B49"]
[WhiteElo "1540"]
[BlackElo "1979"]
[Annotator "NA RC"]
[PlyCount "110"]
[EventDate "2019.09.05"]
[EventType "swiss"]
[EventCountry "CHN"]
[SourceTitle "playchess.com"]
[Source "ChessBase"]
[SourceQuality "1"]
[TimeControl "5400+30"]

1. e4 {[%emt 0:00:00]} c5 {[%emt 0:00:00]} 2. Nf3 {[%emt 0:00:00]} Nc6 {[%emt 0:00:00]} 3. d4 {[%emt 0:00:00]} cxd4 {[%emt 0:00:00]} 4. Nxd4 {[%emt 0:00:00]} e6 {[%emt 0:00:00]} 5. Nc3 {[%emt 0:00:21]} a6 {[%emt 0:00:00]} 6. a3 {[%emt 0:00:40]} Qc7 {[%emt 0:00:02]} 7. Be3 {[%emt 0:00:29]} Nf6 {[%emt 0:00:52]} 8. Be2 {[%emt 0:02:41]} b5 {[%emt 0:00:10]} 9. Nxc6 {[%emt 0:00:37]} dxc6 {[%emt 0:00:11]} 10. O-O {[%emt 0:01:55]} Bb7 {[%emt 0:00:21]} 11. f4 {[%emt 0:02:51]} Be7 {[%emt 0:00:50]} 12. Bf3 {[%emt 0:01:30]} O-O {[%emt 0:01:16]} 13. Qe2 {[%emt 0:02:39] B49: Sicilian: Taimanov: 5 Nc3 Qc7 6 Be3 a6 7 Be2} Rad8 {[%emt 0:03:49]} 14. Rad1 {[%emt 0:01:23]} c5 {[%emt 0:00:19]} 15. e5 {[%emt 0:01:54]} Nd7 $146 {[%emt 0:02:05]} ({Predecessor:} 15... Nd5 16. Nxd5 exd5 17. Bf2 d4 18. Bxb7 Qxb7 19. f5 {0-1 (37) Barros,R (2194)-Rodriguez,G (2167) Quibdo 2015}) 16. Bxb7 {[%emt 0:05:16]} Qxb7 {[%emt 0:00:08]} 17. Bc1 {[%emt 0:02:26]} Nb6 {[%emt 0:08:21]} 18. Ne4 {[%emt 0:06:11]} Qc6 {[%emt 0:00:39]} 19. Rfe1 {[%emt 0:04:46]} c4 {[%emt 0:01:50]} 20. Kh1 {[%emt 0:02:12]} Nd5 {[%emt 0:00:56]} 21. Qf3 {[%emt 0:02:25]} Qc7 {[%emt 0:01:59]} 22. Nc3 {[%emt 0:02:38]} Nxc3 {[%emt 0:01:17]} 23. Qxc3 {[%emt 0:00:38]} Rxd1 {[%emt 0:00:28]} 24. Rxd1 {[%emt 0:00:02]} f6 {[%emt 0:00:07]} 25. exf6 {[%emt 0:06:39]} Bxf6 {[%emt 0:00:08]} 26. Qe3 {[%emt 0:04:59]} Re8 {[%emt 0:00:57]} 27. c3 {[%emt 0:02:15]} h6 {[%emt 0:00:45]} 28. Qe4 {[%emt 0:01:53]} a5 {[%emt 0:04:33]} 29. Be3 {[%emt 0:04:04]} e5 {[%emt 0:14:40]} 30. Kg1 {[%emt 0:07:31]} Qf7 {[%emt 0:03:32]} 31. Qd5 {[%emt 0:08:32]} exf4 {[%emt 0:00:10]} 32. Bxf4 {[%emt 0:00:45]} Re1+ {[%emt 0:00:10]} 33. Kf2 {[%emt 0:01:21]} Rxd1 {[%emt 0:00:07]} 34. Qxd1 {[%emt 0:00:01]} g5 {[%emt 0:00:10]} 35. Bc1 $2 {[%emt 0:06:35]} (35. Be3 {was the crucial defense.} Bxc3+ {[%mdl 64] Discovered Attack} 36. Kg1 Bxb2 37. Qd8+ Kg7 38. Bd4+ Bxd4+ 39. Qxd4+ Kf8 40. Qd8+ Qe8 41. Qxa5) 35... Bd4+ {[%emt 0:00:15] Discovered Attack (Double check)} 36. Kg3 {[%emt 0:03:58]} Qf2+ {[%emt 0:00:09]} 37. Kg4 {[%emt 0:00:07]} Qxg2+ {[%emt 0:01:23] Double Attack} 38. Kf5 {[%emt 0:01:16]} Qd5+ {[%emt 0:01:32]} 39. Kg4 $19 {[%emt 0:00:23]} Qe6+ {[%emt 0:02:35]} 40. Kh5 {[%emt 0:03:21]} Kh7 {[%emt 0:01:48]} 41. Qf3 {[%emt 0:02:36]} Qg6+ {[%emt 0:00:39]} 42. Kg4 {[%emt 0:00:20]} h5+ {[%emt 0:00:50]} 43. Kg3 {[%emt 0:00:22]} Be5+ {[%emt 0:00:21]} 44. Kg2 {[%emt 0:01:48]} Qc2+ {[%emt 0:00:07]} 45. Qf2 {[%emt 0:00:07]} Qxf2+ {[%emt 0:00:05]} 46. Kxf2 {[%emt 0:00:02]} Kg6 {[%emt 0:00:07]} 47. h3 {[%emt 0:00:52]} Kf5 {[%emt 0:00:04]} 48. Be3 {[%emt 0:02:10]} Bc7 {[%emt 0:01:00]} 49. Kf3 {[%emt 0:01:23]} g4+ {[%emt 0:00:08]} 50. Kg2 {[%emt 0:01:31]} Ke4 {[%emt 0:00:04]} 51. Bc5 {[%emt 0:00:22]} Kd3 {[%emt 0:00:06]} 52. a4 {[%emt 0:00:25]} bxa4 {[%emt 0:00:15]} 53. Ba3 {[%emt 0:00:12]} Kc2 {[%emt 0:00:07]} 54. hxg4 {[%emt 0:00:10]} hxg4 {[%emt 0:00:04]} 55. Kf2 {[%emt 0:00:27]} Bf4 {[%emt 0:00:07]} 0-1

[Event "Asian Zonal-ch 3.5 Women 2019"]
[Site "Zi Bo"]
[Date "2019.09.11"]
[Round "11.11"]
[White "Xue, Yue"]
[Black "Yuan, Ye"]
[Result "0-1"]
[ECO "B41"]
[WhiteElo "1678"]
[BlackElo "2092"]
[Annotator "NA RC"]
[PlyCount "54"]
[EventDate "2019.09.05"]
[EventType "swiss"]
[EventCountry "CHN"]
[SourceTitle "playchess.com"]
[Source "ChessBase"]
[SourceQuality "1"]
[TimeControl "5400+30"]

1. e4 {[%emt 0:07:08]} c5 {[%emt 0:00:00]} 2. Nf3 {[%emt 0:00:08]} e6 {[%emt 0:00:00]} 3. d4 {[%emt 0:00:04]} cxd4 {[%emt 0:00:00]} 4. Nxd4 {[%emt 0:00:02]} a6 {[%emt 0:00:06]} 5. c4 {[%emt 0:00:18]} Nf6 {[%emt 0:03:03]} 6. Nc3 {[%emt 0:00:50]} Bb4 {[%emt 0:00:07]} 7. Bd3 {[%emt 0:00:04]} Qc7 {[%emt 0:03:18]} 8. Nde2 {[%emt 0:03:49] B41: Sicilian: Kan Variation: 5 c4} (8. O-O Nc6 9. Bc2 O-O 10. Kh1 Nxd4 11. Qxd4 Ng4 12. f4 Bc5 13. Qd3 d6 14. e5 f5 15. exf6 Nxf6 16. Ne4 Nxe4 17. Qxe4 {1-0 (36) Perunovic,M (2597)-Damljanovic,B (2495) Skopje 2018}) 8... O-O {[%emt 0:03:15]} 9. O-O {[%emt 0:03:56]} d6 {[%emt 0:00:53]} 10. a3 $146 {[%emt 0:05:25]} ({Predecessor:} 10. f3 Bc5+ 11. Kh1 Nc6 12. b3 Nd4 13. Bb2 e5 14. Rc1 Bd7 15. Qd2 {1-0 (35) Carey,M-Lawrence,M USA 1976}) 10... Bc5 {[%emt 0:00:15]} 11. Ng3 {[%emt 0:15:54]} Nbd7 {[%emt 0:04:52]} 12. Kh1 {[%emt 0:00:42]} Ne5 {[%emt 0:04:50]} 13. Be2 {[%emt 0:00:12]} Ba7 {[%emt 0:01:04]} 14. b3 {[%emt 0:00:59]} b5 {[%emt 0:01:06]} 15. f4 {[%emt 0:00:09]} Ned7 {[%emt 0:00:31]} 16. Bb2 {[%emt 0:02:17]} bxc4 {[%emt 0:01:22]} 17. Bxc4 {[%emt 0:00:36]} Nb6 {[%emt 0:13:35]} 18. Bd3 $1 {[%emt 0:01:54]} Bb7 {[%emt 0:08:16]} 19. Rc1 {[%emt 0:02:08]} Qe7 {[%emt 0:03:34]} 20. Qe2 {[%emt 0:03:08]} (20. e5 $16 dxe5 21. fxe5) 20... Nbd7 {[%emt 0:06:16]} ({Better is} 20... Bb8 $14) 21. b4 {[%emt 0:20:10]} Rfd8 {[%emt 0:05:31]} 22. Bb1 {[%emt 0:04:32]} ({Don't play} 22. Bxa6 Bxa6 23. Qxa6 Be3 $15) 22... Nf8 {[%emt 0:03:12]} 23. e5 {[%emt 0:07:32]} dxe5 {[%emt 0:01:12]} 24. fxe5 {[%emt 0:00:02]} Nd5 {[%emt 0:01:07]} 25. Nce4 {[%emt 0:00:52] [#]} Ng6 $1 {[%emt 0:01:23]} 26. Nd6 $2 {[%emt 0:01:14]} (26. Rf3 $1 $15 Nh4 27. Rff1) 26... Ndf4 {[%emt 0:01:05]} 27. Nde4 $2 (27. Bxg6 Nxe2 28. Bxf7+ Kh8 29. Nxe2) 27... Nd5 $11 {[%emt 0:00:29]} (27... Nxe2 $19 28. Nxe2 Nh4) 0-1

[Event "Asian Zonal-ch 3.5 Women 2019"]
[Site "Zi Bo"]
[Date "2019.09.11"]
[Round "11.12"]
[White "Bai, Xue"]
[Black "Zhao, Caidi"]
[Result "1-0"]
[ECO "B91"]
[WhiteElo "2093"]
[BlackElo "1540"]
[Annotator "NA RC"]
[PlyCount "77"]
[EventDate "2019.09.05"]
[EventType "swiss"]
[EventCountry "CHN"]
[SourceTitle "playchess.com"]
[Source "ChessBase"]
[SourceQuality "1"]
[TimeControl "5400+30"]

1. e4 {[%emt 0:00:00]} c5 {[%emt 0:00:00]} 2. Nf3 {[%emt 0:00:00]} d6 {[%emt 0:00:00]} 3. d4 {[%emt 0:00:00]} cxd4 {[%emt 0:00:00]} 4. Nxd4 {[%emt 0:00:00]} Nf6 {[%emt 0:00:00]} 5. Nc3 {[%emt 0:00:00]} a6 {[%emt 0:00:00]} 6. g3 {[%emt 0:00:06]} e5 {[%emt 0:00:13]} 7. Nde2 {[%emt 0:00:05]} Be7 {[%emt 0:00:21]} 8. Bg2 {[%emt 0:00:05]} Be6 {[%emt 0:00:53]} 9. O-O {[%emt 0:00:16]} O-O {[%emt 0:00:23]} 10. h3 {[%emt 0:00:20]} b5 {[%emt 0:01:29] B91: Sicilian Najdorf: 6 g3} (10... Nbd7 11. g4 Nb6 12. a4 Rc8 13. a5 Nc4 14. Nd5 Nxd5 15. exd5 Bd7 16. Qe1 b6 17. axb6 Nxb6 18. Nc3 {0-1 (42) Predke,A (2573)-Korobov,A (2691) Moscow 2017}) 11. Bg5 {[%emt 0:00:24]} Nbd7 {[%emt 0:01:06]} 12. a3 $146 {[%emt 0:00:19]} ({Predecessor:} 12. f4 b4 13. Nd5 Bxd5 14. exd5 Rc8 15. Qd2 h6 16. Bxf6 Bxf6 {0-1 (42) Bai,X (2103)-Buynitskiy,D (2095) Qinhuangdao 2019}) 12... h6 {[%emt 0:00:57]} 13. Be3 {[%emt 0:00:11]} Nb6 {[%emt 0:00:35]} 14. Bxb6 {[%emt 0:00:19]} Qxb6 {[%emt 0:00:02]} 15. Qd2 {[%emt 0:00:08]} Rac8 {[%emt 0:02:13]} 16. Kh2 {[%emt 0:00:26]} Rfd8 {[%emt 0:03:59]} 17. f4 {[%emt 0:00:41]} Bc4 {[%emt 0:01:32]} 18. Rfe1 {[%emt 0:07:07]} Bxe2 {[%emt 0:07:50]} 19. Rxe2 {[%emt 0:00:33]} Rc4 {[%emt 0:01:34]} 20. Nd1 {[%emt 0:12:03]} Bf8 {[%emt 0:05:11]} 21. c3 {[%emt 0:01:06]} Rc5 {[%emt 0:03:55]} 22. Nf2 {[%emt 0:02:21]} Re8 {[%emt 0:02:09]} 23. f5 {[%emt 0:03:24]} Qd8 {[%emt 0:04:28]} 24. Rd1 {[%emt 0:02:31]} Nd7 {[%emt 0:05:02]} 25. Nd3 {[%emt 0:03:13]} Rc8 {[%emt 0:02:39]} 26. h4 {[%emt 0:00:56]} Nc5 {[%emt 0:02:46]} ({Black should play} 26... a5 $11) 27. Nb4 {[%emt 0:00:29]} Kh7 {[%emt 0:09:46]} 28. Rf1 {[%emt 0:01:58]} f6 {[%emt 0:03:11]} 29. Nd5 {[%emt 0:00:33]} Nd7 {[%emt 0:02:37] [#]} 30. Bf3 $1 {[%emt 0:00:14]} Be7 {[%emt 0:00:57]} 31. Bh5 {[%emt 0:00:32]} Rf8 $16 {[%emt 0:01:18]} 32. Rd1 {[%emt 0:01:16]} ({Better is} 32. Qe3) 32... Rc6 {[%emt 0:02:14]} 33. Nb4 {[%emt 0:00:28]} Rb6 {[%emt 0:00:58]} 34. Bg6+ {[%emt 0:03:15]} Kh8 {[%emt 0:00:36]} 35. Nd5 {[%emt 0:00:06]} Rc6 {[%emt 0:00:33]} 36. Ne3 {[%emt 0:00:11]} Rg8 {[%emt 0:03:28]} 37. Ng4 {[%emt 0:00:09]} Qf8 {[%emt 0:00:46]} 38. Qd5 {[%emt 0:00:27]} Qc8 {[%emt 0:02:40]} 39. Qf7 {[%emt 0:17:33]} 1-0